[Event "Blixt-SM 2025"]
[Site "Norrköping, Sweden"]
[Date "2025.09.26"]
[Round "2.6"]
[White "Grahn, Vidar"]
[Black "Fors, Klas"]
[Result "1-0"]
[TimeControl "3 min + 2 sec/move"]
[WhiteTitle "FM"]
[WhiteElo "2236"]
[BlackElo "2063"]

1. d4 {[%clk 00:03:02]} {[%emt 00:00:01]} Nf6 {[%clk 00:03:03]} {[%emt
00:00:01]} 2. c4 {[%clk 00:03:03]} e6 {[%clk 00:03:03]} {[%emt 00:00:02]} 3. g3
{[%clk 00:03:04]} d5 {[%clk 00:03:04]} {[%emt 00:00:02]} 4. Bg2 {[%clk
00:03:05]} Be7 {[%clk 00:03:04]} {[%emt 00:00:02]} 5. Nf3 {[%clk 00:03:07]} O-O
{[%clk 00:03:03]} {[%emt 00:00:03]} 6. O-O {[%clk 00:03:08]} {[%emt 00:00:01]}
c6 {[%clk 00:03:03]} {[%emt 00:00:02]} 7. Nc3 {[%clk 00:03:09]} {[%emt
00:00:01]} b6 {[%clk 00:03:03]} {[%emt 00:00:02]} 8. Ne5 {[%clk 00:03:10]}
{[%emt 00:00:01]} Bb7 {[%clk 00:03:03]} {[%emt 00:00:02]} 9. e4 {[%clk
00:03:11]} Nbd7 {[%clk 00:03:00]} {[%emt 00:00:04]} 10. Nxc6 {[%clk 00:03:11]}
{[%emt 00:00:02]} Bxc6 {[%clk 00:02:55]} {[%emt 00:00:07]} 11. exd5 {[%clk
00:03:12]} {[%emt 00:00:02]} exd5 {[%clk 00:02:37]} {[%emt 00:00:20]} 12. cxd5
{[%clk 00:03:13]} {[%emt 00:00:01]} Bb7 {[%clk 00:02:20]} {[%emt 00:00:20]} 13.
d6 {[%clk 00:03:14]} {[%emt 00:00:01]} Bxg2 {[%clk 00:02:18]} {[%emt 00:00:03]}
14. dxe7 Qxe7 {[%clk 00:02:19]} 15. Kxg2 {[%clk 00:03:15]} Rfe8 {[%clk
00:02:17]} {[%emt 00:00:04]} 16. Be3 {[%clk 00:03:13]} {[%emt 00:00:04]} Rad8
{[%clk 00:02:17]} {[%emt 00:00:02]} 17. Qf3 {[%clk 00:03:07]} {[%emt 00:00:08]}
Nf8 {[%clk 00:02:14]} {[%emt 00:00:04]} 18. Rad1 {[%clk 00:03:02]} {[%emt
00:00:07]} Qd7 {[%clk 00:02:11]} {[%emt 00:00:06]} 19. Rfe1 {[%clk 00:02:47]}
{[%emt 00:00:17]} Qg4 {[%clk 00:02:06]} {[%emt 00:00:06]} 20. Qxg4 {[%clk
00:02:40]} {[%emt 00:00:10]} Nxg4 {[%clk 00:02:06]} {[%emt 00:00:02]} 21. d5
{[%clk 00:02:28]} {[%emt 00:00:13]} h6 {[%clk 00:01:42]} {[%emt 00:00:26]} 22.
Bf4 {[%clk 00:02:19]} {[%emt 00:00:12]} Nd7 {[%clk 00:01:35]} {[%emt 00:00:09]}
23. Bc7 {[%clk 00:02:16]} {[%emt 00:00:04]} Rc8 {[%clk 00:01:35]} {[%emt
00:00:03]} 24. d6 {[%clk 00:02:10]} {[%emt 00:00:09]} a6 {[%clk 00:01:29]}
{[%emt 00:00:07]} 25. Nd5 {[%clk 00:02:08]} {[%emt 00:00:03]} Kh7 {[%clk
00:00:38]} {[%emt 00:00:53]} 26. Rxe8 {[%clk 00:01:59]} {[%emt 00:00:12]} Rxe8
{[%clk 00:00:38]} {[%emt 00:00:01]} 27. Nxb6 {[%clk 00:02:00]} {[%emt
00:00:01]} Ngf6 {[%clk 00:00:39]} {[%emt 00:00:02]} 28. Nxd7 Nxd7 {[%clk
00:00:40]} 29. Rd3 {[%clk 00:01:48]} {[%emt 00:00:01]} Re2 {[%clk 00:00:30]}
{[%emt 00:00:11]} 30. Rb3 {[%clk 00:01:48]} {[%emt 00:00:02]} Kg6 {[%clk
00:00:27]} {[%emt 00:00:05]} 31. Kf3 {[%clk 00:01:48]} {[%emt 00:00:02]} Rc2
{[%clk 00:00:27]} 32. Ke3 {[%clk 00:01:34]} {[%emt 00:00:15]} Kf5 {[%clk
00:00:25]} {[%emt 00:00:05]} 33. Ra3 {[%clk 00:01:24]} {[%emt 00:00:13]} Rxb2
{[%clk 00:00:21]} {[%emt 00:00:06]} 34. Rxa6 {[%clk 00:01:23]} {[%emt
00:00:02]} Ke6 {[%clk 00:00:21]} {[%emt 00:00:02]} 35. Ra8 {[%clk 00:01:10]}
{[%emt 00:00:15]} Nf6 {[%clk 00:00:13]} {[%emt 00:00:10]} 36. a4 {[%clk
00:01:08]} {[%emt 00:00:06]} Kd7 {[%clk 00:00:09]} {[%emt 00:00:05]} 37. a5
{[%clk 00:01:06]} {[%emt 00:00:03]} Nd5+ {[%clk 00:00:10]} {[%emt 00:00:01]} 38.
Kf3 {[%clk 00:01:02]} {[%emt 00:00:06]} Nxc7 {[%clk 00:00:08]} {[%emt
00:00:05]} 39. dxc7 {[%clk 00:01:03]} {[%emt 00:00:01]} Kxc7 {[%clk 00:00:08]}
40. Ra7+ {[%clk 00:01:04]} {[%emt 00:00:01]} Kd6 {[%clk 00:00:05]} {[%emt
00:00:05]} 41. Rxf7 {[%clk 00:01:04]} {[%emt 00:00:02]} 1-0

[Event "Blixt-SM 2025"]
[Site "Norrköping, Sweden"]
[Date "2025.09.26"]
[Round "4.2"]
[White "Religa, Marek"]
[Black "Olsson, Linus"]
[Result "1/2-1/2"]
[TimeControl "3 min + 2 sec/move"]
[BlackTitle "FM"]
[WhiteElo "2207"]
[BlackElo "2166"]

1. e4 {[%clk 00:03:04]} {[%emt 00:10:34]} c5 {[%clk 00:03:02]} {[%emt
00:00:02]} 2. d4 {[%clk 00:03:05]} {[%emt 00:00:02]} cxd4 {[%clk 00:03:02]}
{[%emt 00:00:01]} 3. Qxd4 {[%clk 00:03:06]} {[%emt 00:00:01]} Nc6 {[%clk
00:03:00]} {[%emt 00:00:04]} 4. Qd3 {[%clk 00:03:07]} Nf6 {[%clk 00:02:54]}
{[%emt 00:00:07]} 5. Nc3 {[%clk 00:03:09]} e6 {[%clk 00:02:48]} {[%emt
00:00:09]} 6. Bf4 {[%clk 00:03:10]} Bb4 {[%clk 00:02:19]} {[%emt 00:00:31]} 7.
O-O-O {[%clk 00:02:58]} {[%emt 00:00:13]} O-O {[%clk 00:02:15]} {[%emt
00:00:06]} 8. Bd6 {[%clk 00:02:50]} {[%emt 00:00:10]} Bxd6 {[%clk 00:02:08]}
{[%emt 00:00:09]} 9. Qxd6 {[%clk 00:02:51]} a6 {[%clk 00:02:04]} {[%emt
00:00:06]} 10. f3 {[%clk 00:02:33]} {[%emt 00:00:20]} Qa5 {[%clk 00:01:54]}
{[%emt 00:00:12]} 11. f4 {[%clk 00:01:35]} {[%emt 00:01:00]} b5 {[%clk
00:01:49]} {[%emt 00:00:07]} 12. e5 {[%clk 00:01:27]} {[%emt 00:00:10]} Ng4
{[%clk 00:01:44]} {[%emt 00:00:07]} 13. Qd2 {[%clk 00:00:41]} {[%emt 00:00:48]}
b4 {[%clk 00:01:44]} {[%emt 00:00:02]} 14. Nb1 {[%clk 00:00:41]} {[%emt
00:00:01]} Qxa2 {[%clk 00:01:41]} {[%emt 00:00:06]} 15. h3 {[%clk 00:00:42]}
Nh6 {[%clk 00:01:32]} {[%emt 00:00:12]} 16. Bd3 {[%clk 00:00:38]} {[%emt
00:00:06]} a5 {[%clk 00:01:27]} {[%emt 00:00:07]} 17. Nf3 {[%clk 00:00:24]}
{[%emt 00:00:16]} a4 {[%clk 00:01:25]} {[%emt 00:00:04]} 18. Ng5 {[%clk
00:00:20]} {[%emt 00:00:06]} a3 {[%clk 00:00:56]} {[%emt 00:00:32]} 19. bxa3
{[%clk 00:00:20]} {[%emt 00:00:02]} bxa3 {[%clk 00:00:57]} {[%emt 00:00:01]} 20.
Qc3 {[%clk 00:00:20]} Bb7 {[%clk 00:00:50]} {[%emt 00:00:09]} 21. Bc4 {[%clk
00:00:17]} {[%emt 00:00:05]} Qb2+ {[%clk 00:00:42]} {[%emt 00:00:10]} 22. Qxb2
{[%clk 00:00:18]} axb2+ {[%clk 00:00:43]} {[%emt 00:00:01]} 23. Kxb2 {[%clk
00:00:19]} {[%emt 00:00:02]} Nf5 {[%clk 00:00:38]} {[%emt 00:00:07]} 24. Rxd7
{[%clk 00:00:18]} {[%emt 00:00:02]} Na5 {[%clk 00:00:34]} {[%emt 00:00:06]} 25.
Bd3 {[%clk 00:00:17]} {[%emt 00:00:03]} Bxg2 {[%clk 00:00:33]} {[%emt
00:00:04]} 26. Rg1 {[%clk 00:00:17]} {[%emt 00:00:02]} Bc6 {[%clk 00:00:32]}
{[%emt 00:00:03]} 27. Rc7 {[%clk 00:00:14]} {[%emt 00:00:05]} Bd5 {[%clk
00:00:25]} {[%emt 00:00:08]} 28. Nc3 {[%clk 00:00:12]} {[%emt 00:00:04]} Rab8+
{[%clk 00:00:17]} {[%emt 00:00:11]} 29. Kc1 {[%clk 00:00:13]} Ba8 {[%clk
00:00:18]} 30. Nxe6 {[%clk 00:00:09]} {[%emt 00:00:06]} fxe6 {[%clk 00:00:12]}
{[%emt 00:00:08]} 31. Bxf5 {[%clk 00:00:09]} Rxf5 {[%clk 00:00:07]} {[%emt
00:00:07]} 32. Rgxg7+ {[%clk 00:00:10]} Kf8 {[%clk 00:00:08]} 33. Rxh7 {[%emt
00:00:02]} Kg8 {[%clk 00:00:06]} {[%emt 00:00:03]} 34. Rcg7+ {[%clk 00:00:12]}
{[%emt 00:00:01]} Kf8 {[%clk 00:00:08]} 35. Ra7 {[%clk 00:00:11]} {[%emt
00:00:03]} Kg8 {[%clk 00:00:09]} {[%emt 00:00:01]} 36. Rhg7+ {[%clk 00:00:12]}
{[%emt 00:00:01]} Kf8 {[%clk 00:00:10]} {[%emt 00:00:01]} 37. Rh7 {[%clk
00:00:10]} {[%emt 00:00:03]} Kg8 {[%clk 00:00:12]} 38. Rhg7+ {[%clk 00:00:07]}
{[%emt 00:00:06]} Kf8 {[%clk 00:00:13]} 39. Rh7 {[%clk 00:00:04]} {[%emt
00:00:05]} Kg8 {[%clk 00:00:15]} 1/2-1/2

[Event "Blixt-SM 2025"]
[Site "Norrköping, Sweden"]
[Date "2025.09.26"]
[Round "5.8"]
[White "Wernberg, Hugo"]
[Black "Stahlberg, Adam"]
[Result "1-0"]
[TimeControl "3 min + 2 sec/move"]
[WhiteTitle "FM"]
[WhiteElo "2285"]
[BlackElo "1911"]

1. g3 {[%clk 00:03:02]} {[%emt 00:00:01]} c6 {[%clk 00:03:03]} {[%emt
00:00:01]} 2. Nf3 {[%clk 00:03:00]} {[%emt 00:00:04]} d5 {[%clk 00:03:04]}
{[%emt 00:00:01]} 3. Bg2 {[%clk 00:03:00]} {[%emt 00:00:03]} Nf6 {[%clk
00:03:04]} {[%emt 00:00:02]} 4. c4 {[%clk 00:03:01]} e6 {[%clk 00:03:05]}
{[%emt 00:00:02]} 5. b3 {[%clk 00:03:02]} {[%emt 00:00:01]} Be7 {[%clk
00:03:05]} {[%emt 00:00:01]} 6. Bb2 {[%clk 00:03:03]} O-O {[%clk 00:03:05]}
{[%emt 00:00:04]} 7. O-O {[%clk 00:03:03]} {[%emt 00:00:01]} Nbd7 {[%clk
00:03:06]} {[%emt 00:00:01]} 8. d4 {[%clk 00:03:00]} {[%emt 00:00:05]} Ne4
{[%clk 00:02:53]} {[%emt 00:00:15]} 9. Nbd2 {[%clk 00:02:55]} {[%emt 00:00:07]}
Nxd2 {[%clk 00:02:52]} {[%emt 00:00:04]} 10. Qxd2 {[%clk 00:02:52]} {[%emt
00:00:05]} Nf6 {[%clk 00:02:52]} {[%emt 00:00:01]} 11. Rfd1 {[%clk 00:02:47]}
{[%emt 00:00:06]} Ne4 {[%clk 00:02:52]} {[%emt 00:00:02]} 12. Qc2 {[%clk
00:02:48]} {[%emt 00:00:02]} Bd6 {[%clk 00:02:13]} {[%emt 00:00:41]} 13. Ne5
{[%clk 00:02:37]} {[%emt 00:00:13]} Nf6 {[%clk 00:02:01]} {[%emt 00:00:14]} 14.
Nd3 {[%clk 00:02:16]} {[%emt 00:00:23]} b6 {[%clk 00:01:54]} {[%emt 00:00:09]}
15. f3 {[%clk 00:02:17]} Bb7 {[%clk 00:01:45]} {[%emt 00:00:11]} 16. e4 {[%clk
00:02:18]} dxe4 {[%clk 00:01:46]} {[%emt 00:00:02]} 17. fxe4 {[%clk 00:02:19]}
Ng4 {[%clk 00:01:19]} {[%emt 00:00:29]} 18. Qe2 {[%clk 00:02:15]} {[%emt
00:00:05]} Nh6 {[%clk 00:01:17]} {[%emt 00:00:05]} 19. Qh5 {[%clk 00:01:51]}
{[%emt 00:00:25]} f6 {[%clk 00:00:59]} {[%emt 00:00:20]} 20. Kh1 {[%clk
00:01:03]} {[%emt 00:00:50]} Qe8 {[%clk 00:01:00]} {[%emt 00:00:01]} 21. Qe2
{[%clk 00:00:57]} {[%emt 00:00:08]} Rd8 {[%clk 00:01:00]} {[%emt 00:00:02]} 22.
Rd2 {[%clk 00:00:47]} {[%emt 00:00:12]} Bc8 {[%clk 00:00:59]} {[%emt 00:00:03]}
23. Rad1 {[%clk 00:00:35]} {[%emt 00:00:14]} Be7 {[%clk 00:00:59]} {[%emt
00:00:02]} 24. Nf4 {[%clk 00:00:32]} {[%emt 00:00:05]} Bb4 {[%clk 00:00:55]}
{[%emt 00:00:05]} 25. Rd3 {[%clk 00:00:33]} {[%emt 00:00:03]} g5 {[%clk
00:00:35]} {[%emt 00:00:21]} 26. Nh5 {[%clk 00:00:25]} {[%emt 00:00:09]} Qg6
{[%clk 00:00:37]} 27. e5 {[%clk 00:00:22]} {[%emt 00:00:06]} f5 {[%clk
00:00:38]} 28. d5 {[%clk 00:00:18]} {[%emt 00:00:05]} cxd5 {[%clk 00:00:38]}
{[%emt 00:00:02]} 29. cxd5 {[%clk 00:00:19]} {[%emt 00:00:01]} Ba6 {[%clk
00:00:39]} {[%emt 00:00:01]} 30. Nf6+ {[%clk 00:00:17]} {[%emt 00:00:04]} Kh8
{[%clk 00:00:11]} {[%emt 00:00:29]} 31. a3 {[%clk 00:00:18]} Be7 {[%clk
00:00:10]} {[%emt 00:00:03]} 32. d6 {[%clk 00:00:17]} {[%emt 00:00:03]} Bxf6
{[%clk 00:00:11]} {[%emt 00:00:01]} 33. exf6 {[%clk 00:00:18]} Rf7 {[%clk
00:00:12]} 34. Qxe6 {[%clk 00:00:18]} {[%emt 00:00:02]} Bxd3 {[%clk 00:00:13]}
{[%emt 00:00:02]} 35. Rxd3 {[%clk 00:00:19]} Ng8 {[%clk 00:00:12]} {[%emt
00:00:02]} 36. Bd5 {[%clk 00:00:14]} {[%emt 00:00:07]} Nh6 {[%clk 00:00:09]}
{[%emt 00:00:05]} 37. Bc6 {[%clk 00:00:10]} {[%emt 00:00:06]} Ng4 {[%clk
00:00:05]} {[%emt 00:00:06]} 38. d7 {[%clk 00:00:05]} {[%emt 00:00:08]} Nf2+
{[%clk 00:00:06]} {[%emt 00:00:01]} 39. Kg2 {[%clk 00:00:06]} Nxd3 {[%clk
00:00:07]} 40. Qe8+ {[%clk 00:00:07]} Rf8 {[%clk 00:00:07]} {[%emt 00:00:02]}
41. f7+ {[%clk 00:00:08]} Qg7 {[%clk 00:00:08]} 42. Bxg7+ Kxg7 {[%clk
00:00:09]} 43. Qe7 {[%clk 00:00:08]} {[%emt 00:00:02]} Kg6 {[%clk 00:00:07]}
{[%emt 00:00:04]} 44. Bd5 {[%clk 00:00:09]} {[%emt 00:00:01]} Nc5 {[%clk
00:00:08]} {[%emt 00:00:01]} 45. Qd6+ {[%clk 00:00:08]} {[%emt 00:00:03]} Kg7
{[%clk 00:00:08]} {[%emt 00:00:01]} 46. Qe5+ {[%clk 00:00:09]} {[%emt
00:00:01]} Kg6 {[%clk 00:00:09]} {[%emt 00:00:01]} 47. Qd6+ {[%clk 00:00:07]}
{[%emt 00:00:04]} Kg7 {[%clk 00:00:09]} {[%emt 00:00:02]} 48. Qe7 {[%clk
00:00:08]} {[%emt 00:00:01]} Kg6 {[%clk 00:00:07]} {[%emt 00:00:05]} 49. Be6
{[%clk 00:00:07]} {[%emt 00:00:02]} h6 {[%clk 00:00:03]} {[%emt 00:00:06]} 50.
g4 {[%clk 00:00:08]} fxg4 {[%clk 00:00:04]} {[%emt 00:00:02]} 51. Bxg4 {[%clk
00:00:05]} {[%emt 00:00:05]} Kg7 {[%clk 00:00:05]} 52. Qe5+ {[%clk 00:00:04]}
{[%emt 00:00:03]} Kg6 {[%clk 00:00:06]} {[%emt 00:00:01]} 53. Qd6+ {[%clk
00:00:04]} {[%emt 00:00:01]} Kg7 {[%clk 00:00:07]} 54. Bh5 {[%clk 00:00:05]}
Rxd7 {[%clk 00:00:07]} {[%emt 00:00:02]} 55. Qg6+ {[%clk 00:00:06]} {[%emt
00:00:01]} Kh8 {[%clk 00:00:07]} {[%emt 00:00:02]} 56. Qxh6# {[%clk 00:00:07]}
1-0

[Event "Blixt-SM 2025"]
[Site "Norrköping, Sweden"]
[Date "2025.09.26"]
[Round "7.4"]
[White "Wernberg, Hugo"]
[Black "Religa, Marek"]
[Result "0-1"]
[TimeControl "3 min + 2 sec/move"]
[WhiteTitle "FM"]
[WhiteElo "2285"]
[BlackElo "2207"]

1. g3 {[%clk 00:03:04]} g6 {[%clk 00:03:03]} {[%emt 00:00:01]} 2. Bg2 {[%clk
00:03:05]} Bg7 {[%clk 00:03:05]} 3. e4 {[%clk 00:03:06]} c5 {[%clk 00:03:05]}
{[%emt 00:00:03]} 4. Ne2 {[%clk 00:03:06]} Nc6 {[%clk 00:03:06]} 5. c3 {[%clk
00:03:08]} e5 {[%clk 00:02:59]} {[%emt 00:00:08]} 6. f4 {[%clk 00:03:09]} d6
{[%clk 00:03:00]} {[%emt 00:00:01]} 7. O-O {[%clk 00:03:09]} {[%emt 00:00:02]}
h5 {[%clk 00:03:01]} {[%emt 00:00:02]} 8. d3 {[%clk 00:03:00]} {[%emt
00:00:11]} h4 {[%clk 00:02:59]} {[%emt 00:00:03]} 9. Nd2 {[%clk 00:02:35]}
{[%emt 00:00:27]} hxg3 {[%clk 00:02:52]} {[%emt 00:00:10]} 10. hxg3 {[%clk
00:02:34]} {[%emt 00:00:03]} Bg4 {[%clk 00:02:42]} {[%emt 00:00:12]} 11. Nc4
{[%clk 00:02:10]} {[%emt 00:00:25]} Qd7 {[%clk 00:02:22]} {[%emt 00:00:22]} 12.
b4 {[%clk 00:01:36]} {[%emt 00:00:36]} cxb4 {[%clk 00:02:10]} {[%emt 00:00:15]}
13. cxb4 {[%clk 00:01:36]} {[%emt 00:00:01]} Nd4 {[%clk 00:02:02]} {[%emt
00:00:10]} 14. Rf2 {[%clk 00:01:37]} Nxe2+ {[%clk 00:01:45]} {[%emt 00:00:20]}
15. Rxe2 {[%clk 00:01:38]} {[%emt 00:00:01]} b5 {[%clk 00:01:16]} {[%emt
00:00:32]} 16. Nb2 {[%clk 00:01:11]} {[%emt 00:00:28]} exf4 {[%clk 00:01:14]}
{[%emt 00:00:05]} 17. gxf4 {[%clk 00:01:11]} {[%emt 00:00:02]} Bd4+ {[%clk
00:01:06]} {[%emt 00:00:09]} 18. Kf1 {[%clk 00:01:10]} {[%emt 00:00:03]} Bh3
{[%clk 00:00:38]} {[%emt 00:00:30]} 19. Qb3 {[%clk 00:00:05]} {[%emt 00:01:07]}
Qg4 {[%clk 00:00:34]} {[%emt 00:00:06]} 20. Qd5 {[%clk 00:00:04]} {[%emt
00:00:03]} Bxg2+ {[%clk 00:00:27]} {[%emt 00:00:09]} 21. Ke1 {[%clk 00:00:06]}
Bc3+ {[%clk 00:00:25]} {[%emt 00:00:05]} 22. Kd1 {[%clk 00:00:07]} Rh1+ {[%clk
00:00:20]} {[%emt 00:00:07]} 23. Kc2 {[%clk 00:00:09]} Qxe2+ {[%clk 00:00:20]}
{[%emt 00:00:03]} 24. Kb3 {[%clk 00:00:10]} Rc8 {[%clk 00:00:12]} {[%emt
00:00:10]} 25. Qxb5+ {[%clk 00:00:11]} {[%emt 00:00:01]} Kf8 {[%clk 00:00:14]}
26. Nc4 {[%clk 00:00:12]} Qxd3 {[%clk 00:00:11]} {[%emt 00:00:05]} 27. Nxd6
{[%clk 00:00:11]} {[%emt 00:00:03]} Qxb5 {[%clk 00:00:11]} {[%emt 00:00:02]}
0-1

[Event "Blixt-SM 2025"]
[Site "Norrköping, Sweden"]
[Date "2025.09.26"]
[Round "8.10"]
[White "Lindh, Fredrik"]
[Black "Sjoholm, Emil"]
[Result "1-0"]
[TimeControl "3 min + 2 sec/move"]
[WhiteTitle "FM"]
[WhiteElo "2249"]
[BlackElo "2062"]

1. e4 {[%clk 00:03:02]} {[%emt 00:00:02]} e5 {[%clk 00:03:03]} 2. Nf3 {[%clk
00:03:03]} {[%emt 00:00:01]} Nc6 {[%clk 00:03:05]} {[%emt 00:00:02]} 3. Bb5
{[%clk 00:03:03]} {[%emt 00:00:01]} Nf6 {[%clk 00:03:06]} {[%emt 00:00:01]} 4.
O-O {[%clk 00:03:04]} {[%emt 00:00:01]} Nxe4 {[%clk 00:03:06]} {[%emt
00:00:02]} 5. d4 {[%clk 00:03:05]} {[%emt 00:00:01]} Nd6 {[%clk 00:03:02]}
{[%emt 00:00:06]} 6. dxe5 {[%clk 00:03:05]} {[%emt 00:00:01]} Nxb5 {[%clk
00:03:03]} 7. a4 {[%clk 00:03:06]} {[%emt 00:00:02]} Nbd4 {[%clk 00:03:04]} 8.
Nxd4 {[%clk 00:03:07]} {[%emt 00:00:02]} Nxd4 {[%clk 00:03:05]} {[%emt
00:00:01]} 9. Qxd4 {[%clk 00:03:07]} {[%emt 00:00:02]} d5 {[%clk 00:03:06]}
{[%emt 00:00:01]} 10. Nc3 {[%clk 00:03:08]} Be6 {[%clk 00:02:59]} {[%emt
00:00:09]} 11. b4 {[%clk 00:02:45]} {[%emt 00:00:25]} b6 {[%clk 00:02:54]}
{[%emt 00:00:07]} 12. Ba3 {[%clk 00:02:39]} {[%emt 00:00:08]} Rc8 {[%clk
00:02:20]} {[%emt 00:00:35]} 13. b5 {[%clk 00:02:36]} {[%emt 00:00:05]} Bxa3
{[%clk 00:02:17]} {[%emt 00:00:06]} 14. Rxa3 {[%clk 00:02:37]} {[%emt
00:00:01]} O-O {[%clk 00:01:51]} {[%emt 00:00:26]} 15. f4 {[%clk 00:02:27]}
{[%emt 00:00:13]} Bf5 {[%clk 00:01:33]} {[%emt 00:00:21]} 16. Nxd5 {[%clk
00:01:55]} {[%emt 00:00:34]} Bxc2 {[%clk 00:01:09]} {[%emt 00:00:25]} 17. f5
{[%clk 00:01:51]} {[%emt 00:00:07]} c5 {[%clk 00:01:02]} {[%emt 00:00:09]} 18.
Qc4 {[%clk 00:00:45]} {[%emt 00:01:07]} Re8 {[%clk 00:00:37]} {[%emt 00:00:28]}
19. Ne3 {[%clk 00:00:24]} {[%emt 00:00:23]} Bxa4 {[%clk 00:00:22]} {[%emt
00:00:16]} 20. Rxa4 {[%clk 00:00:24]} {[%emt 00:00:03]} Rxe5 {[%clk 00:00:23]}
21. Ng4 {[%clk 00:00:24]} {[%emt 00:00:02]} Rd5 {[%clk 00:00:19]} {[%emt
00:00:07]} 22. f6 {[%clk 00:00:18]} {[%emt 00:00:07]} Rd4 {[%clk 00:00:17]}
{[%emt 00:00:04]} 23. Qc2 {[%clk 00:00:16]} {[%emt 00:00:03]} g6 {[%emt
00:00:18]} 1-0

[Event "Blixt-SM 2025"]
[Site "Norrköping, Sweden"]
[Date "2025.09.26"]
[Round "10.6"]
[White "Muntean, Victor"]
[Black "Sandberg, Lucas"]
[Result "1-0"]
[TimeControl "3 min + 2 sec/move"]
[WhiteElo "2151"]
[BlackElo "2268"]

1. e4 {[%clk 00:03:03]} c6 {[%clk 00:03:04]} {[%emt 00:00:01]} 2. d4 {[%clk
00:03:04]} g6 {[%clk 00:03:05]} 3. Nf3 {[%clk 00:03:02]} {[%emt 00:00:04]} d5
{[%clk 00:03:06]} {[%emt 00:00:01]} 4. exd5 {[%clk 00:03:03]} cxd5 {[%clk
00:03:07]} {[%emt 00:00:01]} 5. Ne5 {[%clk 00:03:01]} {[%emt 00:00:04]} Nf6
{[%clk 00:03:07]} 6. c3 {[%clk 00:03:01]} {[%emt 00:00:03]} Bg7 {[%clk
00:03:08]} {[%emt 00:00:01]} 7. Nd2 {[%clk 00:02:59]} {[%emt 00:00:04]} O-O
{[%clk 00:03:08]} {[%emt 00:00:02]} 8. Ndf3 {[%clk 00:03:00]} {[%emt 00:00:01]}
Nc6 {[%clk 00:03:07]} {[%emt 00:00:03]} 9. Nxc6 {[%clk 00:02:55]} {[%emt
00:00:07]} bxc6 {[%clk 00:03:09]} 10. Bd3 {[%clk 00:02:46]} {[%emt 00:00:11]}
Ne4 {[%clk 00:03:09]} 11. Qe2 {[%clk 00:02:35]} {[%emt 00:00:13]} Rb8 {[%clk
00:02:42]} {[%emt 00:00:28]} 12. Bf4 {[%clk 00:02:25]} {[%emt 00:00:12]} Rb6
{[%clk 00:02:43]} {[%emt 00:00:01]} 13. O-O {[%clk 00:02:22]} {[%emt 00:00:06]}
Bf5 {[%clk 00:02:40]} {[%emt 00:00:05]} 14. Nh4 {[%clk 00:02:03]} {[%emt
00:00:21]} e6 {[%clk 00:02:41]} 15. Nxf5 exf5 {[%clk 00:02:42]} 16. f3 {[%clk
00:01:51]} {[%emt 00:00:07]} Nd6 {[%clk 00:02:43]} 17. Qf2 {[%clk 00:01:40]}
{[%emt 00:00:14]} Re8 {[%clk 00:02:41]} {[%emt 00:00:03]} 18. Rfe1 {[%clk
00:01:41]} {[%emt 00:00:02]} Rxe1+ {[%clk 00:02:26]} {[%emt 00:00:17]} 19. Rxe1
{[%emt 00:00:01]} Rb7 20. Qg3 {[%clk 00:01:32]} {[%emt 00:00:11]} Ne8 {[%clk
00:02:24]} {[%emt 00:00:05]} 21. b4 {[%clk 00:01:26]} {[%emt 00:00:09]} a5
{[%clk 00:02:22]} {[%emt 00:00:04]} 22. a3 {[%clk 00:01:25]} {[%emt 00:00:04]}
axb4 23. axb4 {[%clk 00:01:25]} Ra7 {[%clk 00:02:22]} 24. b5 {[%clk 00:01:18]}
{[%emt 00:00:10]} c5 {[%clk 00:02:05]} {[%emt 00:00:17]} 25. b6 {[%clk
00:00:59]} {[%emt 00:00:21]} Rb7 {[%clk 00:02:07]} 26. Bb5 {[%clk 00:01:00]}
Nf6 {[%clk 00:01:56]} {[%emt 00:00:13]} 27. Bc7 {[%clk 00:01:01]} Qa8 {[%clk
00:01:50]} {[%emt 00:00:07]} 28. Bc6 {[%clk 00:00:47]} {[%emt 00:00:17]} cxd4
{[%clk 00:01:50]} {[%emt 00:00:02]} 29. Bxb7 {[%clk 00:00:44]} {[%emt
00:00:05]} Qxb7 {[%clk 00:01:50]} {[%emt 00:00:02]} 30. cxd4 {[%clk 00:00:45]}
h5 {[%clk 00:01:46]} {[%emt 00:00:06]} 31. Qd6 {[%clk 00:00:32]} {[%emt
00:00:15]} Qa6 {[%clk 00:01:27]} {[%emt 00:00:21]} 32. Qb4 {[%clk 00:00:26]}
{[%emt 00:00:08]} Bf8 {[%clk 00:01:14]} {[%emt 00:00:15]} 33. Bd6 {[%clk
00:00:17]} {[%emt 00:00:11]} Bxd6 {[%clk 00:01:15]} 34. Qxd6 Qa5 35. Rf1 {[%clk
00:00:09]} {[%emt 00:00:11]} 1-0

[ePGN "0.1;DGT LiveChess/2.2.7"]